[Event "5th Vera Menchik Memorial 2022"]
[Site "Prag"]
[Date "2022.06.05"]
[Round "1.2"]
[White "Pecka, Jan"]
[Black "Pulpan, Jakub"]
[Result "0-1"]
[ECO "B01"]
[WhiteElo "1863"]
[BlackElo "2418"]
[Annotator "TA"]
[PlyCount "82"]
[EventDate "2022.06.05"]
[EventType "tourn"]
[EventCountry "CZE"]
[SourceTitle "playchess.com"]
[Source "ChessBase"]
[SourceQuality "1"]
[TimeControl "720+3"]

{[%evp 9,82,0,8,0,14,0,9,-14,-15,-9,-4,-31,-32,-32,-32,-69,156,70,138,138,145,142,165,168,164,167,274,202,220,164,167,156,162,19,17,-283,-273,-280,-266,-261,-260,-253,-232,-219,-211,-220,-202,-262,-263,-340,-328,-327,-320,-381,-369,-480,-480,-487,-487,-487,-480,-468,-456,-515,-505,-643,-622,-600,-585,-5949,-1523,-5815,-5642,-4935,-4133]} 1. e4 {[%emt 0:00:02]} d5 {[%emt 0:00:24]} 2. exd5 {[%emt 0:00:02]} Nf6 {[%emt 0:00:02]} 3. Bb5+ {[%emt 0:00:09]} Bd7 {[%emt 0:00:11]} 4. Bxd7+ {[%emt 0:00:01]} Qxd7 {[%emt 0:00:03]} 5. Nf3 {[%emt 0:00:03]} Qxd5 {[%emt 0:00:10]} 6. O-O {[%emt 0:00:04] B01: Scandinavian Defence.} e6 {[%emt 0:00:02][%cal Be7e6,Be6e5][%mdl 32]} 7. d4 {[%emt 0:00:04]} Bd6 {[%emt 0:00:03] [#]} 8. Qe2 $146 {[%emt 0:00:47] The position is equal.} ({Predecessor:} 8. Qd3 Nc6 9. Nc3 Qh5 10. Nb5 O-O 11. Nxd6 cxd6 12. Bg5 Qg6 13. Qxg6 hxg6 14. Bxf6 gxf6 {0-1 (48) Filgueiras,N (2260)-Gauche,C (2201) Caioba 2019}) 8... Nc6 {[%emt 0:00:04]} 9. Be3 {[%emt 0:00:15]} O-O-O {[%emt 0:00:09]} 10. c4 {[%emt 0:00:02]} Qh5 {[%emt 0:00:02]} 11. Nc3 {[%emt 0:00:10]} e5 {[%emt 0:00:18] And now ...exd4 would win.} 12. d5 {[%emt 0:00:12] Strongly threatening Ng5.} Ne7 $2 {[%emt 0:00:19]} (12... e4 $15 {stays ahead.} 13. Nxe4 (13. dxc6 $2 exf3 14. cxb7+ Kd7 $19) 13... Nxe4 14. dxc6 Bxh2+ $1 15. Kh1 bxc6) 13. Qc2 {[%emt 0:02:45]} (13. Bxa7 e4 14. Nxe4 Bxh2+ 15. Kh1 Bd6+ 16. Kg1 Bh2+ 17. Kh1 Bf4+ 18. Kg1 Bh2+ $11) (13. Ng5 $1 $16) 13... Ng4 {[%emt 0:01:17] [#]} (13... Qg6 $14 14. Qe2 (14. Qxg6 Nxg6 15. Nb5 a6 $14) 14... Nf5) 14. Ne4 $1 $36 {[%emt 0:01:49][%mdl 2048] Black is under strong pressure.} ({Of course not} 14. Bxa7 $6 e4 15. Nxe4 (15. Qxe4 $2 Bxh2+ 16. Kh1 Nf5 $19) 15... Bxh2+ 16. Kh1 Ng6 $15) 14... f5 {[%emt 0:00:56] [#]} 15. Ng3 {[%emt 0:00:01]} Nxe3 {[%emt 0:00:07]} 16. fxe3 {[%emt 0:00:05]} (16. Nxh5 $2 {loses.} Nxc2 17. Rac1 Nb4 $19) 16... Qh6 {[%emt 0:01:42] White must now prevent ...e4.} 17. Nxf5 {[%emt 0:00:04]} Qf6 {[%emt 0:00:36]} (17... Nxf5 $142 18. Qxf5+ Kb8) 18. Nxe7+ {[%emt 0:01:02]} Qxe7 {[%emt 0:00:07]} 19. Nd2 {[%emt 0:00:10]} Bc5 {[%emt 0:00:09]} 20. Qe4 {[%emt 0:00:11]} Rhf8 {[%emt 0:00:32]} 21. Nf3 {[%emt 0:00:27]} ({White should play} 21. Qd3 $18) 21... Rf4 $1 $11 {[%emt 0:00:24]} 22. Qxe5 {[%emt 0:00:13][%mdl 8192] [#] Loses the game.} ({But not} 22. Qd3 $2 e4 23. Qe2 exf3 24. Rxf3 Rxf3 25. Qxf3 Rf8 26. Qg4+ Kb8 $19) (22. Qxh7 $11 {and White is okay.} Bxe3+ 23. Kh1) 22... Rxf3 $1 $19 {[%emt 0:00:04][%mdl 512]} 23. Qxe7 {[%emt 0:00:04]} Rxf1+ {[%emt 0:00:02]} 24. Rxf1 {[%emt 0:00:01]} Bxe7 $11 {[%emt 0:00:01][%mdl 4096] Endgame KRB-KR} 25. Rf7 {[%emt 0:00:14]} Bc5 {[%emt 0:00:18]} 26. Rxg7 {[%emt 0:00:16]} Bxe3+ {[%emt 0:00:02]} 27. Kf1 {[%emt 0:00:00]} h6 {[%emt 0:00:10]} 28. Rf7 {[%emt 0:00:13]} b5 {[%emt 0:00:13]} 29. b3 {[%emt 0:00:04]} bxc4 {[%emt 0:00:00]} 30. bxc4 {[%emt 0:00:01]} Rd6 {[%emt 0:00:03]} 31. Rf3 {[%emt 0:00:35]} Bc5 {[%emt 0:00:02]} 32. Rb3 {[%emt 0:00:05]} Rf6+ {[%emt 0:00:19] Black is clearly winning.} 33. Ke1 {[%emt 0:00:24]} Rf4 {[%emt 0:00:05]} 34. Rh3 {[%emt 0:00:16]} Rxc4 {[%emt 0:00:08]} 35. Rxh6 {[%emt 0:00:02]} Rc2 {[%emt 0:00:01][%csl LRa2,LRg2]} 36. Rc6 {[%emt 0:00:10]} Bb4+ {[%emt 0:00:01]} 37. Kd1 {[%emt 0:00:02]} Rxg2 {[%emt 0:00:02]} 38. Rc4 {[%emt 0:00:07]} a5 {[%emt 0:00:08]} 39. h4 {[%emt 0:00:02]} Rxa2 {[%emt 0:00:04]} 40. Kc1 {[%emt 0:00:15]} Rh2 {[%emt 0:00:02] Threatens to win with ...Kb7.} 41. Kb1 {[%emt 0:00:16]} Kb7 {[%emt 0:00:03] Weighted Error Value: White=0.81/Black=0.18 (very precise)} 0-1

[Event "5th Vera Menchik Memorial 2022"]
[Site "Prag"]
[Date "2022.06.05"]
[Round "1.3"]
[White "Jirovsky, Milos"]
[Black "Partl, Miloslav"]
[Result "1-0"]
[ECO "E60"]
[WhiteElo "2458"]
[BlackElo "1866"]
[Annotator "TA"]
[PlyCount "91"]
[EventDate "2022.06.05"]
[EventType "tourn"]
[EventCountry "CZE"]
[SourceTitle "playchess.com"]
[Source "ChessBase"]
[SourceQuality "1"]
[TimeControl "720+3"]

{[%evp 14,91,46,45,65,48,83,33,77,35,46,41,33,33,46,49,43,51,110,111,180,173,174,174,202,217,241,251,256,242,294,264,252,258,300,285,272,289,318,298,316,288,284,247,304,312,406,260,273,214,305,304,294,285,284,0,252,142,146,149,298,193,270,213,1641,234,856,833,823,779,2215,2274,1743,1385,1346,1345,29982,29976,29991,29992]} 1. Nf3 {[%emt 0:00:03]} g6 {[%emt 0:12:06]} 2. c4 {[%emt 0:00:01]} Bg7 {[%emt 0:00:00]} 3. g3 {[%emt 0:00:01]} Nf6 {[%emt 0:00:00]} 4. Bg2 {[%emt 0:00:01]} O-O {[%emt 0:00:00]} 5. O-O {[%emt 0:00:02]} c6 {[%emt 0:00:00]} 6. d4 {[%emt 0:00:01]} Na6 {[%emt 0:00:00]} 7. Nc3 {[%emt 0:00:02]} Nc7 {[%emt 0:00:00]} 8. e4 {[%emt 0:00:02]} d6 {[%emt 0:00:00] E60: King's Indian: Unusual lines and Fianchetto Variation without Nc3.} 9. h3 {[%emt 0:00:02]} Bd7 {[%emt 0:00:00]} 10. Be3 {[%emt 0:00:02] [#]} (10. e5 $16 Nfe8 11. Re1) 10... a5 $146 {[%emt 0:00:00] White is slightly better.} ({Predecessor:} 10... b5 11. e5 Nfe8 12. b3 b4 13. Ne2 Rb8 14. Qd2 Qc8 15. Kh2 Bf5 16. Bh6 Be4 17. Bxg7 Kxg7 {1-0 (36) Jovanovic,M (2057)-Markovic,T (1525) Belgrade 2008}) 11. Qc2 {[%emt 0:00:06]} b5 {[%emt 0:00:00]} 12. Nd2 {[%emt 0:00:08]} bxc4 {[%emt 0:00:00]} 13. Nxc4 {[%emt 0:00:02]} d5 {[%emt 0:00:00]} 14. Nb6 {[%emt 0:00:28]} Rb8 {[%emt 0:00:00]} 15. Nxd7 {[%emt 0:00:02]} Qxd7 {[%emt 0:00:00]} (15... Nxd7 $14 16. Rad1 (16. exd5 cxd5 17. Nxd5 Nxd5 $14) 16... dxe4) 16. e5 $16 {[%emt 0:00:01]} Nfe8 {[%emt 0:00:00]} (16... Ne4 $16 {keeps fighting.}) 17. Na4 $36 {[%emt 0:00:04][%mdl 2048] White has strong initiative.} Ne6 {[%emt 0:00:00]} 18. Rac1 {[%emt 0:00:06]} Rb4 {[%emt 0:00:00]} 19. Rfd1 {[%emt 0:00:07]} (19. Nc5 Nxc5 20. Qxc5 Rxb2 21. Qxc6 Qxc6 22. Rxc6 e6 $16) 19... c5 {[%emt 0:00:00]} 20. Nxc5 {[%emt 0:00:12]} Nxc5 {[%emt 0:00:00]} 21. Qxc5 {[%emt 0:00:02]} (21. dxc5 e6 22. f4 Qc7 $18) 21... Rxb2 {[%emt 0:00:00]} 22. Qxa5 {[%emt 0:00:16]} e6 {[%emt 0:00:00]} 23. Rb1 {[%emt 0:00:50]} Rxb1 {[%emt 0:00:00]} 24. Rxb1 {[%emt 0:00:00]} f6 {[%emt 0:00:00]} 25. f4 {[%emt 0:00:04][%cal Bf2f4,Bf4e5][%mdl 32]} fxe5 {[%emt 0:00:00]} 26. fxe5 {[%emt 0:00:02]} (26. dxe5 g5 27. Rb8 gxf4 28. Bxf4 (28. gxf4 Qf7 $18) 28... Nc7 $18) 26... Rf7 {[%emt 0:00:00]} 27. Rb8 {[%emt 0:00:08]} Bf8 {[%emt 0:00:00]} 28. a4 {[%emt 0:02:47] Hoping for Kh2.} Ng7 {[%emt 0:00:00]} 29. g4 {[%emt 0:00:11] Against Nf5} h5 {[%emt 0:00:00]} 30. Qb5 {[%emt 0:03:08]} Qe7 {[%emt 0:00:00]} 31. Qd3 {[%emt 0:00:30] Inhibits Qa3. a5 is the strong threat.} hxg4 {[%emt 0:00:00]} (31... Qa7 $142 32. Rb1 Kh7) 32. hxg4 {[%emt 0:00:00]} ({Weaker is} 32. Qxg6 Qh4 33. Qg5 (33. Kh2 $2 gxh3 34. Bh1 Qe1 $19) 33... Qg3 34. hxg4 Rf3 $11) 32... Qa7 {[%emt 0:00:00]} 33. Qb5 {[%emt 0:00:41] Strongly threatening a5.} Qe7 {[%emt 0:00:00]} 34. Qd3 {[%emt 0:00:45] Inhibits Qa3. Threatens to win with a5.} Qa7 {[%emt 0:00:00]} 35. Rb1 {[%emt 0:00:01]} (35. Qb3 $18) 35... Qxa4 $16 {[%emt 0:00:00]} 36. Qxg6 {[%emt 0:00:02] [#] And now Bf1 would win.} Qa2 {[%emt 0:00:00]} (36... Qa3 $16 {might work better.} 37. Qg5 Qe7 38. Qxe7 Bxe7 39. Rb8+ Rf8 40. Rxf8+ Kxf8) 37. Qd3 {[%emt 0:00:05]} Ne8 {[%emt 0:00:00]} (37... Ra7 {is a better defense.}) 38. Kh2 {[%emt 0:00:14]} Rf3 $2 {[%emt 0:01:51]} (38... Ng7 39. Rb8 Qa7) 39. Re1 $2 {[%emt 0:00:34]} (39. Qg6+ Ng7 {[#]} 40. Rb7 $1) 39... Ng7 $2 {[%emt 0:00:00]} (39... Rf7 40. Rb1 Ng7) 40. Re2 $18 {[%emt 0:00:05]} Rxe3 {[%emt 0:00:00]} 41. Qxe3 {[%emt 0:00:01]} (41. Rxa2 $2 {loses.} Rxd3 42. Ra1 Rxd4 $19) 41... Qc4 {[%emt 0:00:00]} 42. Rf2 {[%emt 0:00:02] Qf4 would kill now.} Be7 {[%emt 0:00:00]} 43. Kg3 {[%emt 0:00:12]} Qc8 {[%emt 0:00:00]} 44. Bf1 {[%emt 0:00:15] White threatens Bd3 and mate.} Qe8 {[%emt 0:00:00]} 45. Bd3 {[%emt 0:00:02]} Qd8 {[%emt 0:00:00]} 46. Qh6 {[%emt 0:00:03] Weighted Error Value: White=0.61/Black=0.49} 1-0

[Event "5th Vera Menchik Memorial 2022"]
[Site "Prag"]
[Date "2022.06.05"]
[Round "1.4"]
[White "Frouz, Petr"]
[Black "Sahidi, Samir"]
[Result "0-1"]
[ECO "D94"]
[WhiteElo "1846"]
[BlackElo "2459"]
[Annotator "TA"]
[PlyCount "101"]
[EventDate "2022.06.05"]
[EventType "tourn"]
[EventCountry "CZE"]
[SourceTitle "playchess.com"]
[Source "ChessBase"]
[SourceQuality "1"]
[TimeControl "720+3"]

{[%evp 15,101,0,2,-13,0,-32,0,-41,-15,-15,-4,-14,-15,-53,-19,-29,-24,-76,-84,-87,-76,-91,-58,-68,-62,-55,-54,-54,-47,-56,-31,-21,-9,-14,-6,-7,-7,-7,0,-7,-2,-17,-8,-54,-40,-63,-64,-69,-70,-87,-89,-87,-78,-115,-111,-105,-110,-122,-84,-119,-129,-119,-41,-125,-131,-143,-102,-113,-101,-138,-139,-140,-141,-172,-123,-134,-141,-193,-187,-166,-118,-1058,-1014,-895,-966,-1057,-1047,-5022]} 1. d4 {[%emt 0:00:01]} Nf6 {[%emt 0:00:03]} 2. Nf3 {[%emt 0:00:03]} g6 {[%emt 0:00:14]} 3. c4 {[%emt 0:00:03]} Bg7 {[%emt 0:00:02]} 4. Nc3 {[%emt 0:00:03]} d5 {[%emt 0:00:03]} 5. e3 {[%emt 0:00:04]} O-O {[%emt 0:00:07]} 6. Be2 {[%emt 0:00:04]} dxc4 {[%emt 0:00:37]} 7. Bxc4 {[%emt 0:00:03]} c5 {[%emt 0:00:02]} 8. O-O {[%emt 0:00:05]} cxd4 {[%emt 0:01:11]} 9. Qxd4 {[%emt 0:00:23] D94: Grünfeld: 4 Nf3 Bg7 5 e3.} Qa5 {[%emt 0:00:17]} 10. Qd1 {[%emt 0:01:14]} Nc6 {[%emt 0:00:11] [#]} (10... Qc7 $5 {[%cal Rc7c4]} 11. Qe2 Bg4 $11) 11. Re1 $146 {[%emt 0:00:13] The position is equal.} ({Predecessor:} 11. Qe2 Bg4 12. h3 Bxf3 13. Qxf3 Ne5 14. Qe2 Nxc4 15. Qxc4 Rfd8 16. e4 a6 17. Qe2 {½-½ (49) Krawczyk,W (1780)-Kyc,J (2279) Dobczyce 2019}) 11... a6 {[%emt 0:00:43]} 12. Bd2 {[%emt 0:00:55]} Bg4 {[%emt 0:00:50]} 13. Be2 {[%emt 0:00:08]} Rfd8 {[%emt 0:00:12]} 14. a3 {[%emt 0:00:34]} Rd7 {[%emt 0:00:39] [#] White must now prevent ...Qd8.} 15. Qc2 {[%emt 0:00:01]} Rad8 {[%emt 0:00:14] And now ...Bxf3 would win.} 16. Ne4 {[%emt 0:00:18]} (16. Rad1 $11 {keeps the balance.}) 16... Qf5 $17 {[%emt 0:00:32]} 17. Nxf6+ {[%emt 0:00:34]} Bxf6 {[%emt 0:00:06]} ({Reject} 17... exf6 $6 18. e4 Qe6 19. Bc3 $11) 18. Qxf5 {[%emt 0:00:20]} gxf5 {[%emt 0:00:45]} 19. Bc3 {[%emt 0:00:12]} Bxc3 {[%emt 0:00:16]} 20. bxc3 {[%emt 0:00:01]} Bxf3 {[%emt 0:00:03]} 21. Bxf3 {[%emt 0:00:01]} Na5 {[%emt 0:00:40]} 22. Red1 {[%emt 0:00:39]} Kg7 {[%emt 0:00:28]} 23. Kf1 {[%emt 0:00:03]} Nc4 {[%emt 0:00:21]} 24. Rd4 {[%emt 0:01:07]} Nd2+ {[%emt 0:00:34]} 25. Ke2 {[%emt 0:00:01]} Nb3 {[%emt 0:00:02][%csl LRa1,LRd4]} 26. Rxd7 {[%emt 0:00:06]} Rxd7 $11 {[%emt 0:00:02][%mdl 4096] Endgame KRB-KRN} 27. Rb1 {[%emt 0:00:30]} Nc5 {[%emt 0:00:02]} 28. Rb4 {[%emt 0:00:18]} b5 {[%emt 0:00:17]} 29. Rd4 {[%emt 0:00:23]} (29. Rf4 $11 {feels stronger.}) 29... Rc7 $1 $15 {[%emt 0:00:01]} 30. Rd5 {[%emt 0:00:44]} Kf6 {[%emt 0:00:12]} 31. Kd2 {[%emt 0:00:08]} Na4 {[%emt 0:00:03]} 32. Rd3 {[%emt 0:00:14]} Nb2 {[%emt 0:00:01]} 33. Rd8 {[%emt 0:04:09]} Nc4+ {[%emt 0:00:02]} 34. Kc2 {[%emt 0:00:00]} Nxa3+ {[%emt 0:00:01]} 35. Kb3 {[%emt 0:00:00]} Nc4 {[%emt 0:00:18]} 36. Ra8 {[%emt 0:00:00]} a5 {[%emt 0:00:10]} 37. Be2 {[%emt 0:00:00]} Nd2+ {[%emt 0:00:27]} 38. Kb2 {[%emt 0:00:00] [#]} b4 {[%emt 0:00:15]} ({Black should play} 38... Ne4 $1 $17 {[%cal Re4c3]} 39. Rxa5 Rd7) 39. cxb4 {[%emt 0:00:00]} (39. Rxa5 $15 Rxc3 40. Rb5) 39... axb4 $17 {[%emt 0:00:02]} 40. Rb8 {[%emt 0:00:00]} Ne4 {[%emt 0:00:23]} 41. Rxb4 {[%emt 0:00:00]} Nxf2 {[%emt 0:00:02][%cal Oh7h5]} 42. Rh4 {[%emt 0:00:00]} Kg6 {[%emt 0:00:20]} 43. Rf4 {[%emt 0:00:00]} Ne4 {[%emt 0:00:02]} 44. Bd3 {[%emt 0:00:00]} Nd6 {[%emt 0:00:02]} ({Better is} 44... e5 $19 45. Rf1 Rd7) 45. g4 {[%emt 0:00:00][%cal Rg4f5]} e6 {[%emt 0:00:16]} 46. h4 {[%emt 0:00:00]} (46. gxf5+ $17 {might work better.} Nxf5 47. Rf3) 46... Kf6 $19 {[%emt 0:00:22]} 47. gxf5 {[%emt 0:00:00]} exf5 {[%emt 0:00:02]} (47... Nxf5 $19 48. Kb3 Ke5) 48. e4 $2 {[%emt 0:00:00][%mdl 8192] This move loses the game for White.} (48. Ra4 $17) 48... Ke5 {[%emt 0:00:05][%csl LRe4,LRf4] Black is clearly winning.} 49. Rf1 {[%emt 0:00:00]} fxe4 {[%emt 0:00:01]} 50. Re1 {[%emt 0:00:00]} f5 {[%emt 0:00:02]} 51. Re3 {[%emt 0:00:00] Weighted Error Value: White=0.37/Black=0.12 (very precise)} 0-1

[Event "5th Vera Menchik Memorial 2022"]
[Site "Prag"]
[Date "2022.06.05"]
[Round "1.5"]
[White "Neuman, Petr"]
[Black "Slechta, Karel"]
[Result "1-0"]
[ECO "D20"]
[WhiteElo "2389"]
[BlackElo "1832"]
[Annotator "TA"]
[PlyCount "59"]
[EventDate "2022.06.05"]
[EventType "tourn"]
[EventCountry "CZE"]
[SourceTitle "playchess.com"]
[Source "ChessBase"]
[SourceQuality "1"]
[TimeControl "720+3"]

{[%evp 9,59,16,56,43,43,0,33,-8,-16,-21,-25,-15,29,37,129,121,141,132,121,119,113,120,128,128,160,160,163,148,172,143,239,243,237,247,329,143,147,139,141,127,131,125,135,30,288,291,431,419,544,513,2100,1861]} 1. d4 {[%emt 0:00:02]} d5 {[%emt 0:00:01]} 2. c4 {[%emt 0:00:02]} dxc4 {[%emt 0:00:01]} 3. e4 {[%emt 0:00:03]} e5 {[%emt 0:00:02]} 4. Nf3 {[%emt 0:00:03][%cal Bg1f3,Bf3d4,Bd4b5,Bb5d6][%mdl 32]} exd4 {[%emt 0:00:04]} 5. Bxc4 {[%emt 0:00:02]} Nf6 {[%emt 0:00:11]} 6. O-O {[%emt 0:00:13] [#] Threatens to win with Ng5. D20: Queen's Gambit Accepted: 3 e3 and 3 e4.} ({Don't play} 6. Nxd4 Bc5 7. Be3 Ng4 $11) (6. Qb3 $5 {[%cal Rc4f7]} Qe7 7. O-O $14 (7. Nxd4 Qxe4+ 8. Be3 Qg6 $11)) 6... Be7 {[%emt 0:00:07] [#]} 7. Re1 $146 {[%emt 0:00:52]} ({Predecessor:} 7. e5 Nd5 8. Qb3 c6 9. Bxd5 Qxd5 10. Qxd5 cxd5 11. Nxd4 a6 12. Be3 Nc6 13. f4 {1-0 (45) Vujec,I (2161)-Matkun,E (1952) Croatia 2017}) 7... O-O {[%emt 0:00:13]} 8. Nxd4 {[%emt 0:00:04] White is slightly better.} c5 {[%emt 0:00:27]} 9. Nb5 {[%emt 0:00:11]} a6 {[%emt 0:00:09] [#] Hoping for ...Qxd1.} 10. Qxd8 {[%emt 0:00:04]} Bxd8 {[%emt 0:00:02]} 11. Nd6 {[%emt 0:00:05]} b5 {[%emt 0:01:12]} ({Black should try} 11... Bc7 $14 12. Nxc8 Rxc8) 12. Nxc8 $16 {[%emt 0:00:03][%cal Oe4e5] 0x0.001e35dd441ddp-1022s more active pieces.} bxc4 {[%emt 0:00:17]} 13. Nd6 {[%emt 0:00:02]} Nc6 {[%emt 0:00:09]} 14. Nxc4 {[%emt 0:00:06]} Nd4 {[%emt 0:00:03]} 15. Nba3 {[%emt 0:00:03] Against Nc2} Bc7 {[%emt 0:00:25]} 16. f3 {[%emt 0:00:02]} Rab8 {[%emt 0:00:30]} 17. Be3 {[%emt 0:00:04]} Rfd8 {[%emt 0:00:14]} 18. Rac1 {[%emt 0:00:03]} Nd7 {[%emt 0:00:16]} 19. b3 {[%emt 0:00:13]} Ne5 {[%emt 0:00:11]} (19... a5 $16 20. Nb2 Nc6) 20. Nxe5 $18 {[%emt 0:00:02]} Bxe5 {[%emt 0:00:02]} 21. Rxc5 {[%emt 0:01:00]} f6 {[%emt 0:01:03]} 22. Rd5 {[%emt 0:00:51]} (22. f4 $18 {has better winning chances.}) 22... Rxd5 $16 {[%emt 0:00:27]} 23. exd5 {[%emt 0:00:02][%cal Be4d5,Bd5d6,Bd6d7][%mdl 32]} Rd8 {[%emt 0:00:00]} 24. f4 {[%emt 0:00:03]} Bd6 {[%emt 0:00:19]} 25. Nc4 {[%emt 0:00:44]} Nc2 {[%emt 0:00:26]} 26. Bb6 {[%emt 0:00:04]} (26. Rd1 $16 {Bb6 is the strong threat.} Nxe3 27. Nxe3) 26... Nxe1 $4 {[%emt 0:06:30][%mdl 8192] Loses the game.} (26... Bc5+ $1 $11 {and Black is okay.} 27. Kh1 (27. Bxc5 Nxe1 28. d6 Nd3 $11) 27... Rxd5) 27. Bxd8 $18 {[%emt 0:08:21]} Bxf4 {[%emt 0:00:00]} (27... Bc5+ $142 28. Kf1 Nd3) 28. d6 {[%emt 0:00:00]} Kf7 {[%emt 0:00:00]} 29. Ba5 {[%emt 0:00:00] And now d7 would win.} Nd3 {[%emt 0:00:00]} (29... Nf3+ $142 30. gxf3 Ke6) 30. d7 {[%emt 0:00:00] Weighted Error Value: White=0.23 (precise) /Black=0.50} 1-0

[Event "5th Vera Menchik Memorial 2022"]
[Site "Prag"]
[Date "2022.06.05"]
[Round "1.6"]
[White "Sladek, Vladislav"]
[Black "Mladek, Richard"]
[Result "0-1"]
[ECO "C24"]
[WhiteElo "1919"]
[BlackElo "2361"]
[Annotator "TA"]
[PlyCount "66"]
[EventDate "2022.06.05"]
[EventType "tourn"]
[EventCountry "CZE"]
[SourceTitle "playchess.com"]
[Source "ChessBase"]
[SourceQuality "1"]
[TimeControl "720+3"]

{[%evp 9,66,-7,-7,0,40,-3,39,48,48,45,89,80,79,64,94,53,48,-15,-12,-16,-22,-23,-10,-25,0,0,0,0,0,0,0,-79,-100,-97,0,-26,-29,-30,-27,-35,-27,-27,-28,-420,0,0,24,24,24,24,32,25,25,-141,-141,-12835,-12822,-2862,-2187]} 1. e4 {[%emt 0:00:01][%cal Be2e4,Be4e5][%mdl 32]} e5 {[%emt 0:00:01]} 2. Bc4 {[%emt 0:00:02]} Nf6 {[%emt 0:00:09]} 3. d4 {[%emt 0:00:01]} exd4 {[%emt 0:00:46]} 4. Nf3 {[%emt 0:00:01]} Bc5 {[%emt 0:03:34]} 5. e5 {[%emt 0:00:04] [#]} d5 $1 {[%emt 0:00:13]} 6. exf6 {[%emt 0:00:27] C24: Bishop's Opening: 2...Nf6.} dxc4 {[%emt 0:00:02]} 7. fxg7 {[%emt 0:00:02]} Qe7+ {[%emt 0:01:33] [#]} 8. Be3 $1 {[%emt 0:01:57] White is slightly better.} Rg8 {[%emt 0:00:10]} 9. Nxd4 {[%emt 0:00:06] [#]} Rxg7 $146 {[%emt 0:00:24] Strongly threatening ...Bg4.} ({Predecessor:} 9... Bxd4 10. Qxd4 Nc6 11. Qc5 Qxc5 12. Bxc5 Rxg7 13. O-O Be6 14. Rd1 b6 15. Be3 Rd8 16. Rxd8+ Kxd8 {1-0 (36) Abzalov,I (2118)-Stroganov,A (1914) Kostroma 2010}) 10. Nc3 $1 {[%emt 0:00:27] Nd5 is the strong threat.} Bg4 {[%emt 0:01:07]} 11. Qd2 {[%emt 0:01:02]} Nc6 {[%emt 0:00:01]} 12. Nxc6 {[%emt 0:01:27]} bxc6 {[%emt 0:00:01]} 13. Kf1 {[%emt 0:00:45]} (13. O-O $14) 13... Rd8 $36 {[%emt 0:00:22][%mdl 2048] Black has the initiative.} 14. Bxc5 {[%emt 0:00:09]} Rxd2 {[%emt 0:00:10] Active counter play!} 15. Bxe7 {[%emt 0:00:07]} Kxe7 {[%emt 0:00:01]} 16. Re1+ {[%emt 0:00:24]} Kf8 {[%emt 0:00:28]} 17. f3 {[%emt 0:01:04]} Bf5 {[%emt 0:00:08]} 18. Re2 {[%emt 0:00:14]} Rxe2 {[%emt 0:00:02]} 19. Nxe2 {[%emt 0:00:02]} Bxc2 {[%emt 0:00:01][%mdl 4096] Endgame KRB-KRN} 20. Nd4 {[%emt 0:00:04]} (20. Kf2 $11 {remains equal.}) 20... Bd3+ $17 {[%emt 0:00:11]} 21. Kf2 {[%emt 0:00:02]} Rg5 {[%emt 0:00:02]} (21... Rg6 $1 $17 {And now ...c5 would win.} 22. b4 Ke7) 22. Rd1 {[%emt 0:00:17]} Ra5 {[%emt 0:00:19]} 23. a3 {[%emt 0:00:07]} c5 {[%emt 0:00:01]} 24. Nc6 {[%emt 0:00:12]} Rb5 {[%emt 0:00:08]} 25. Rd2 {[%emt 0:00:01]} f6 {[%emt 0:00:45]} 26. Nxa7 $2 {[%emt 0:00:38][%mdl 8192] [#]} (26. a4 $11 {and White has nothing to worry.} Rb7 27. Nd8) 26... Rb6 $2 {[%emt 0:00:02]} (26... Ra5 $1 $19 27. Nc8 Ra8) 27. a4 $11 {[%emt 0:00:01]} Rb4 {[%emt 0:00:29]} 28. Nb5 {[%emt 0:00:07]} Rxa4 {[%emt 0:00:07]} 29. Nxc7 {[%emt 0:00:01] Black must now prevent Ne6+.} Kf7 {[%emt 0:00:18] Inhibits Ne6.} 30. Nd5 {[%emt 0:00:01]} Ra2 {[%emt 0:00:10]} 31. Nf4 $2 {[%emt 0:00:05] [#]} (31. Ke3 $11) 31... c3 $1 $17 {[%emt 0:00:08]} 32. Nxd3 $2 {[%emt 0:01:02][%mdl 8192]} ({Don't blunder} 32. Rxd3 $2 cxb2 33. Rd7+ Ke8 $19) (32. bxc3 $17 Rxd2+ 33. Ke3) 32... cxd2 $19 {[%emt 0:00:23]} 33. Ke2 {[%emt 0:00:01]} c4 {[%emt 0:00:06] Weighted Error Value: White=0.64/Black=0.43} 0-1